{"text_format":"1","workbook":"xlsx","n_sheets":6,"sheets":["SolCotizacion","ResumenCotizacion","csv","Listas","Catalogo","formatoCeldas"],"not_rendered":{"charts":0,"images":12,"macros":1,"external_links":5,"defined_names":29,"comments":0,"pivot_tables":0},"unopened":[],"bounds":{"document_bytes":16777216,"sheet_cells":100000,"rows_first":2000,"rows_last":500,"rows_between":2000,"halvings":0,"cell_chars":16384,"cell_head_chars":4096},"cells_cut":0,"cells_raw":0,"read":"whole","date_system":"1900"}

{"sheet":"SolCotizacion","index":0,"n_rows":37,"n_cols":13,"rows_kept":37,"cut":false,"hidden":false,"merged":[[1,0,1,10],[0,0,0,10],[2,0,2,10],[25,0,25,2],[7,0,7,1],[7,6,7,7],[7,8,7,10],[8,8,8,10],[24,0,24,2],[3,0,3,10],[5,0,5,1],[5,6,5,7],[5,8,5,10],[5,2,5,4],[7,2,7,4],[22,0,22,3],[18,0,18,1],[29,0,29,10],[18,4,18,8],[9,0,9,1],[9,6,9,7],[9,8,9,10],[11,2,11,4],[9,2,9,4],[23,0,23,2],[11,0,11,1],[16,0,16,10],[32,0,32,10],[33,7,33,10],[34,7,34,10],[33,1,33,2],[34,1,34,2],[33,3,33,5],[34,3,34,5]]}
["SOLICITUD DE COTIZACIÓN",null,null,null,null,null,null,null,null,null,null,0,0]
["Instrumento de Agregación de Demanda para contratar el \nServicio de Recepción Almacenamiento, Ensamble y Distribución de Refrigerios Escolares PAE IV",null,null,null,null,null,null,null,null,null,null,0,0]
["Versión 5   18/10/2024",null,null,null,null,null,null,null,null,null,null,0,0]
["Información de la Entidad Compradora",null,null,null,null,null,null,null,null,null,null,null,0]
[]
["Nombre de la Entidad",null,"Secretaría de Educación del Distrito – SED ",null,null,null,"NIT",null,"899999061-9"]
[]
["Dirección de la Entidad",null,"Av. El Dorado No 66-63",null,null,null,"Correo de contacto",null,""]
[]
["Municipio",null,"Bogotá D.C.",null,null,null,"Teléfono de contacto",null,""]
[]
["Nombre funcionario comprador",null,""]
[]
[]
[]
[]
["Solicitud de Cotización"]
[]
["Segmento",null,"","Proveedor",{"$f":"IFERROR(VLOOKUP($C$19,Listas!$A:$B,2,0),\"\")","v":""},null,null,null,null,{"$f":"IFERROR(VLOOKUP($C$19,Listas!$A:$B,2,0),\"\")","v":""}]
[]
[]
[]
["Resumen de Orden"]
["Combinación ",null,null,"Cantidad"]
["ped04--Refrigerio Escolar - primera entrega"]
["ped04--Refrigerio Escolar - segunda entrega"]
[]
[]
[]
["Sedes Educativas"]
[]
[]
["Información de Sedes Educativas"]
["No.","Nombre del colegio",null,"Dirección",null,null,"Fechas y horarios de entrega","Encargado por la SED para verificar la entrega de los Refrigerios Escolares"]
[1]
[]
[null,"Agregar o eliminar:",1]

{"sheet":"ResumenCotizacion","index":1,"n_rows":28,"n_cols":13,"rows_kept":28,"cut":false,"hidden":false,"merged":[[27,5,27,6],[24,5,24,6],[25,5,25,6],[9,0,9,1],[9,2,9,4],[9,6,9,7],[16,0,16,10],[18,0,18,1],[22,0,22,6],[25,0,25,2],[18,4,18,8],[23,5,23,6],[23,0,23,2],[24,0,24,2],[7,6,7,7],[7,8,7,10],[8,8,8,10],[0,0,0,10],[11,0,11,1],[11,2,11,4],[1,0,1,10],[2,0,2,10],[9,8,9,10],[3,0,3,10],[5,0,5,1],[5,2,5,4],[5,6,5,7],[5,8,5,10],[7,0,7,1],[7,2,7,4]]}
["RESUMEN DE COTIZACIÓN",null,null,null,null,null,null,null,null,null,null,0,0]
["Instrumento de Agregación de Demanda para contratar el \nServicio de Recepción Almacenamiento, Ensamble y Distribución de Refrigerios Escolares PAE IV",null,null,null,null,null,null,null,null,null,null,0,0]
[{"$f":"+SolCotizacion!A3","v":"Versión 5   18/10/2024"},null,null,null,null,null,null,null,null,null,null,0,0]
["Información de la Entidad Compradora",null,null,null,null,null,null,null,null,null,null,null,0]
[]
["Nombre de la Entidad",null,"Secretaría de Educación del Distrito – SED ",null,null,null,"NIT",null,"899999061-9"]
[]
["Dirección de la Entidad",null,"Av. El Dorado No 66-63",null,null,null,"Correo de contacto",null,""]
[]
["Municipio",null,"Bogotá D.C.",null,null,null,"Teléfono de contacto",null,""]
[]
["Nombre funcionario comprador",null,""]
[]
[]
[]
[]
["Solicitud de Cotización"]
[]
["Segmento",null,"","Proveedor",null,null,null,null,null,"UNION TEMPORAL HUBCOL MS"]
[]
[]
[]
["Resumen de Orden"]
["Combinación ",null,null,"Cantidad","Precio Unitario","Precio Total"]
["ped04--Refrigerio Escolar - primera entrega",null,null,null,null,{"$f":"+D25*E25","v":0}]
["ped04--Refrigerio Escolar - segunda entrega",null,null,null,null,{"$f":"+D26*E26","v":0}]
[]
[null,null,null,null,"Valor Total:",{"$f":"+SUM(F25:G27)","v":0}]

{"sheet":"csv","index":2,"n_rows":6,"n_cols":48,"rows_kept":6,"cut":false,"hidden":true,"merged":[]}
["Solicitud","Registrar identificador","¿Enviar para aprobación?","Límite de recepción de la sol.","Justificación","Nombre del departamento","Nota del comprador","Solicitado por (correo electrónico)","Solicitado por (inicio de sesión)","Nombre de tarjeta de compras","Enviar a nombre","Enviar a id.","Enviar a la atención","Enviar a calle 1","Enviar a calle 2","Enviar a ciudad","Enviar a estado","Enviar a código postal","Enviar a código de país","Enviar a nombre de país","Enviar a código de ubicación","N.I.T.","Agregación","Necesidad del bien o servicio*","Modalidad de selección","Destinación del gasto*","Origen de los    recursos*","Asociado al Acuerdo de Paz","Supervisor de la Orden de Compra*","Correo electrónico del supervisor*","Teléfono del      supervisor*","Vencimiento de la Orden de Compra*","Especificaciones adicionales de entrega","Gravámenes      adicionales","Integración con SIIF","Código Unidad / Subunidad Ejecutora","Acepto términos y condiciones","Código Unidad / Subunidad Ejecutora","Acepto términos y condiciones"]
["Línea de solicitudes","Registrar identificador","Número de línea","Número de artículo del catálogo","Nombre de artículo del catálogo","Descripción de artículo no catalogado","Número de parte del proveedor","Cantidad","Precio","Límite de recepción de la sol.","Nombre del proveedor","Número del proveedor","Código de sitio del proveedor","Código de unidad de medida","Nombre de mercancía","Nombre del contrato","Código de divisa","Etiquetas de activos","Nombre del Cuadro de cuentas","Nombre de la cuenta","Código de cuentas","Segmento 1 de la cuenta","Segmento 2 de la cuenta","Segmento 3 de la cuenta","Segmento 4 de la cuenta","Segmento 5 de la cuenta","Segmento 6 de la cuenta","Segmento 7 de la cuenta","Segmento 8 de la cuenta","Segmento 9 de la cuenta","Segmento 10 de la cuenta","Segmento 11 de la cuenta","Segmento 12 de la cuenta","Segmento 13 de la cuenta","Segmento 14 de la cuenta","Segmento 15 de la cuenta","Segmento 16 de la cuenta","Segmento 15 de la cuenta","Segmento 16 de la cuenta","Segmento 17 de la cuenta","Segmento 18 de la cuenta","Segmento 19 de la cuenta","Segmento 20 de la cuenta","Importe de asignación de cuenta","Porcentaje de asignación de cuenta","Código del plazo de pago","Código del plazo de envío","Nombre de período de presupuesto"]
["Asignación de cuentas","Registrar identificador","Número de línea","Monto","Porcentaje","Nombre de período de presupuesto","Nombre de la cuenta","Código de cuentas","Segmento 1 de la cuenta","Segmento 2 de la cuenta","Segmento 3 de la cuenta","Segmento 4 de la cuenta","Segmento 5 de la cuenta","Segmento 6 de la cuenta","Segmento 7 de la cuenta","Segmento 8 de la cuenta","Segmento 9 de la cuenta","Segmento 10 de la cuenta","Segmento 11 de la cuenta","Segmento 12 de la cuenta","Segmento 13 de la cuenta","Segmento 14 de la cuenta","Segmento 15 de la cuenta","Segmento 16 de la cuenta","Segmento 17 de la cuenta","Segmento 18 de la cuenta","Segmento 19 de la cuenta","Segmento 20 de la cuenta"]
["Solicitud",1,"no",null,null,"Digite nombre de la entidad",null,"crear.entidad@colombiacompra.gov.co","digite.usuario",null,"Direccion",4394,null,null,null,null,null,null,null,null,null,null,"Servicio de Almacenamiento, Ensamble y Distribución de Refrigerios Escolares II","Necesidad","Selección Abreviada AMP","Funcionamiento","Recursos propios","No","Digite supervisor","Digite correo","1900-01-01","2020-01-01",null,"Gravámenes",null,"Sí"]
["Línea de solicitudes",1,1,null,"ped04--Refrigerio Escolar - primera entrega - Segmento 7",null,null,10,"549,74",null,"UNION TEMPORAL HUBCOL MS",null,null,"Und","Servicio de Almacenamiento, Ensamble y Distribución de Refrigerios Escolares II",null,"COP"]
["Línea de solicitudes",1,2,null,"ped04--Refrigerio Escolar - segunda entrega - Segmento 7",null,null,10,"549,74",null,"UNION TEMPORAL HUBCOL MS",null,null,"Und","Servicio de Almacenamiento, Ensamble y Distribución de Refrigerios Escolares II",null,"COP"]

{"sheet":"Listas","index":3,"n_rows":10,"n_cols":6,"rows_kept":10,"cut":false,"hidden":true,"merged":[]}
["Segmento","Proveedor",null,"Segmento","Proveedor","Estado"]
[1,"Alimentos Provercol SAS",null,10,"Cooperativa de Suministros y Alimentos de Colombia","Retirado"]
[2,"UNION TEMPORAL NUTRIENDO FUTURO"]
[3,"Mountain Food S.A.S."]
[4,"Lácteos Appenzell S.A.S."]
[5,"UNION TEMPORAL SOCIAL FOOD"]
[7,"UNION TEMPORAL HUBCOL MS"]
[8,"Lácteos Appenzell S.A.S."]
[9,"UNION TEMPORAL HUBCOL MS"]
[10,"UNION TEMPORAL SOCIAL FOOD"]

{"sheet":"Catalogo","index":4,"n_rows":21,"n_cols":11,"rows_kept":21,"cut":false,"hidden":true,"merged":[]}
["Segmento","Combinación ","Alimentos Provercol SAS","UNION TEMPORAL NUTRIENDO FUTURO","Mountain Food S.A.S.","Lácteos Appenzell S.A.S.","UNION TEMPORAL SOCIAL FOOD","(CLN 2022) CONSORCIO NUTRISERVI LOGISTICO","UNION TEMPORAL HUBCOL MS","NOMBRE TVEC","LLAVE TVEC"]
[1,"Precio del Refrigerio Escolar - primera entrega",516.16999999999996,0,0,0,0,0,0,"ped04--Refrigerio Escolar - primera entrega",{"$f":"J2&\" - Segmento \"&A2","v":"ped04--Refrigerio Escolar - primera entrega - Segmento 1"}]
[1,"Precio del Refrigerio Escolar - segunda entrega",516.16999999999996,0,0,0,0,0,0,"ped04--Refrigerio Escolar - segunda entrega","ped04--Refrigerio Escolar - segunda entrega - Segmento 1"]
[2,"Precio del Refrigerio Escolar - primera entrega",0,500.79,0,0,0,0,0,"ped04--Refrigerio Escolar - primera entrega","ped04--Refrigerio Escolar - primera entrega - Segmento 2"]
[2,"Precio del Refrigerio Escolar - segunda entrega",0,500.79,0,0,0,0,0,"ped04--Refrigerio Escolar - segunda entrega","ped04--Refrigerio Escolar - segunda entrega - Segmento 2"]
[3,"Precio del Refrigerio Escolar - primera entrega",0,0,558.64,0,0,0,0,"ped04--Refrigerio Escolar - primera entrega","ped04--Refrigerio Escolar - primera entrega - Segmento 3"]
[3,"Precio del Refrigerio Escolar - segunda entrega",0,0,558.64,0,0,0,0,"ped04--Refrigerio Escolar - segunda entrega","ped04--Refrigerio Escolar - segunda entrega - Segmento 3"]
[4,"Precio del Refrigerio Escolar - primera entrega",0,0,0,560.05999999999995,0,0,0,"ped04--Refrigerio Escolar - primera entrega","ped04--Refrigerio Escolar - primera entrega - Segmento 4"]
[4,"Precio del Refrigerio Escolar - segunda entrega",0,0,0,560.05999999999995,0,0,0,"ped04--Refrigerio Escolar - segunda entrega","ped04--Refrigerio Escolar - segunda entrega - Segmento 4"]
[5,"Precio del Refrigerio Escolar - primera entrega",0,0,0,0,511.25,0,0,"ped04--Refrigerio Escolar - primera entrega","ped04--Refrigerio Escolar - primera entrega - Segmento 5"]
[5,"Precio del Refrigerio Escolar - segunda entrega",0,0,0,0,511.25,0,0,"ped04--Refrigerio Escolar - segunda entrega","ped04--Refrigerio Escolar - segunda entrega - Segmento 5"]
[6,"Precio del Refrigerio Escolar - primera entrega",0,0,0,0,0,499.54,0,"ped04--Refrigerio Escolar - primera entrega","ped04--Refrigerio Escolar - primera entrega - Segmento 6"]
[6,"Precio del Refrigerio Escolar - segunda entrega",0,0,0,0,0,499.54,0,"ped04--Refrigerio Escolar - segunda entrega","ped04--Refrigerio Escolar - segunda entrega - Segmento 6"]
[7,"Precio del Refrigerio Escolar - primera entrega",0,0,0,0,0,0,549.74,"ped04--Refrigerio Escolar - primera entrega","ped04--Refrigerio Escolar - primera entrega - Segmento 7"]
[7,"Precio del Refrigerio Escolar - segunda entrega",0,0,0,0,0,0,549.74,"ped04--Refrigerio Escolar - segunda entrega","ped04--Refrigerio Escolar - segunda entrega - Segmento 7"]
[8,"Precio del Refrigerio Escolar - primera entrega",0,0,0,560.05999999999995,0,0,0,"ped04--Refrigerio Escolar - primera entrega","ped04--Refrigerio Escolar - primera entrega - Segmento 8"]
[8,"Precio del Refrigerio Escolar - segunda entrega",0,0,0,560.05999999999995,0,0,0,"ped04--Refrigerio Escolar - segunda entrega","ped04--Refrigerio Escolar - segunda entrega - Segmento 8"]
[9,"Precio del Refrigerio Escolar - primera entrega",0,0,0,0,0,0,549.74,"ped04--Refrigerio Escolar - primera entrega","ped04--Refrigerio Escolar - primera entrega - Segmento 9"]
[9,"Precio del Refrigerio Escolar - segunda entrega",0,0,0,0,0,0,549.74,"ped04--Refrigerio Escolar - segunda entrega","ped04--Refrigerio Escolar - segunda entrega - Segmento 9"]
[10,"Precio del Refrigerio Escolar - primera entrega",0,0,0,0,511.25,0,0,"ped04--Refrigerio Escolar - primera entrega","ped04--Refrigerio Escolar - primera entrega - Segmento 10"]
[10,"Precio del Refrigerio Escolar - segunda entrega",0,0,0,0,511.25,0,0,"ped04--Refrigerio Escolar - segunda entrega","ped04--Refrigerio Escolar - segunda entrega - Segmento 10"]

{"sheet":"formatoCeldas","index":5,"n_rows":6,"n_cols":1,"rows_kept":6,"cut":false,"hidden":true,"merged":[]}
[]
["Campo de usuario"]
[]
["Campo de usuario resaltado"]
[]
["Campo de usuario bloqueado"]